bitfinex-derivatives/quotes_ETHF0:USTF0_20250518
["timestamp","ask_amount","ask_price","bid_price","bid_amount"]
[1747538245870,4.06665321,2477.1,2477.0,0.80715]
[1747538246072,4.06665321,2477.1,2477.0,12.18695]
[1747538246273,4.06665321,2477.1,2476.8,3.7362]
[1747538246469,3.2078,2477.0,2476.6,4.8076]
[1747538246672,0.80725,2476.7,2476.6,3.058]
[1747538246875,4.01505,2476.7,2476.6,3.058]
[1747538247074,0.80725,2476.7,2476.6,3.058]
[1747538247280,0.80728,2476.6,2476.5,3.058]
[1747538248676,2.71478,2476.6,2476.5,3.058]
[1747538249279,0.80734,2476.5,2476.3,0.80737]
[1747538249580,0.80734,2476.5,2476.3,2.69088]
[1747538250082,0.80734,2476.5,2476.3,5.74888]
[1747538250582,0.80736,2476.4,2476.3,3.058]
[1747538250785,7.91939489,2476.4,2476.3,3.058]
[1747538251177,0.80749,2476.0,2475.9,8.171]
[1747538251880,2.61029,2476.0,2475.9,8.171]
[1747538252077,2.61029,2476.0,2475.9,11.229]
[1747538253085,2.61029,2476.0,2475.9,3.058]
[1747538253781,4.23177307,2476.3,2475.9,3.058]
[1747538253975,0.66773841,2476.1,2476.0,0.80749]
[1747538254182,0.66773841,2476.1,2476.0,2.74099]
[1747538254380,0.66773841,2476.1,2476.0,4.67349]
[1747538255184,0.66773841,2476.1,2476.0,17.01730439]
[1747538257283,0.66773841,2476.1,2476.0,7.73149]
[1747538257489,0.66773841,2476.1,2476.0,24.07249]
[1747538258389,0.80739,2476.3,2476.0,24.07249]
[1747538258390,0.80739,2476.3,2476.1,0.80742]
[1747538258593,0.80739,2476.3,2476.2,1.8569]
[1747538258989,2.72779,2476.3,2476.2,1.8569]
[1747538259192,1.9204,2476.3,2476.2,2.66432]
[1747538259492,2.72779,2476.3,2476.2,2.66432]
[1747538259888,2.72779,2476.3,2476.2,1.8569]
[1747538260391,2.72497,2476.4,2476.2,2.66432]
[1747538260591,1.9176,2476.4,2476.3,0.80739]
[1747538260792,2.72496,2476.4,2476.3,1.7704]
[1747538261187,2.72496,2476.4,2476.3,12.9994]
[1747538262196,6.57263841,2476.6,2476.4,0.80735]
[1747538262385,6.57263841,2476.6,2476.4,2.73565]
[1747538262995,0.66773841,2476.5,2476.4,2.73565]
[1747538263193,0.66773841,2476.5,2476.4,5.79365]
[1747538264201,0.66773841,2476.5,2476.4,7.61095]
[1747538265896,0.66773841,2476.5,2476.4,10.81875]
[1747538266702,0.80723,2476.8,2476.6,0.80727]
[1747538266904,0.80723,2476.8,2476.7,9.9812]
[1747538266905,0.80722,2476.8,2476.7,9.9812]
[1747538268200,2.74052,2476.8,2476.7,9.9812]
[1747538269900,0.66773841,2476.9,2476.7,9.9812]
[1747538270208,0.66773841,2476.9,2476.8,0.80722]
[1747538270399,0.66773841,2476.9,2476.8,2.71162]
[1747538271109,0.66773841,2476.9,2476.8,5.76962]
[1747538272006,2.55303841,2476.9,2476.8,5.76962]
[1747538272208,1.8853,2476.9,2476.8,5.76962]
[1747538273815,2.69249,2476.9,2476.8,5.76962]
[1747538274107,2.69249,2476.9,2476.8,4.9624]
[1747538274506,1.8853,2476.9,2476.8,5.76962]
[1747538274810,0.80719,2476.9,2476.8,5.76962]
[1747538275507,4.68271841,2477.0,2476.9,0.80719]
[1747538275810,0.66773841,2477.0,2476.9,2.70749]
[1747538276210,0.66773841,2477.0,2476.9,5.76549]
[1747538276919,0.80716,2477.0,2476.9,3.058]
[1747538277107,2.61786,2477.0,2476.9,11.226]
[1747538277307,2.61786,2477.0,2476.9,12.03319]
[1747538277508,2.61786,2477.0,2476.9,11.226]
[1747538278017,2.61786,2477.0,2476.9,12.03319]
[1747538278315,2.61786,2477.0,2476.9,11.226]
[1747538278818,1.8107,2477.0,2476.9,12.03319]
[1747538280114,1.8107,2477.0,2476.9,13.87179]
[1747538281412,1.8107,2477.0,2476.9,5.70379]
[1747538281612,2.61786,2477.0,2476.9,3.058]
[1747538281919,5.82566,2477.0,2476.9,11.225]
[1747538282215,5.82566,2477.0,2476.9,3.058]
[1747538282417,5.82566,2477.0,2476.9,11.225]
[1747538282917,5.82566,2477.0,2476.9,3.058]
[1747538283315,5.82566,2477.0,2476.9,11.225]
[1747538284312,5.82566,2477.0,2476.9,12.03219]
[1747538284512,5.0185,2477.0,2476.9,12.03219]
[1747538285918,5.0185,2477.0,2476.9,12.12437003]
[1747538286117,1.8107,2477.0,2476.9,12.12437003]
[1747538286318,5.0185,2477.0,2476.9,12.12437003]
[1747538288115,1.59977997,2477.1,2477.0,0.80716]
[1747538288617,1.59977997,2477.1,2477.0,2.71956]
[1747538288819,2.26751838,2477.1,2477.0,2.71956]
[1747538289219,0.66773841,2477.1,2477.0,5.77756]
[1747538289519,0.66773841,2477.1,2477.0,10.84826]
[1747538290819,0.66773841,2477.1,2477.0,8.98536]
[1747538291220,2.51003841,2477.1,2477.0,8.98536]
[1747538291523,0.66773841,2477.1,2477.0,8.98536]
[1747538293116,1.59977997,2477.4,2477.3,0.80706]
[1747538293316,1.59977997,2477.4,2477.3,8.97406]
[1747538294018,1.59977997,2477.4,2477.3,29.84916946]
[1747538294216,1.59977997,2477.4,2477.3,34.75936946]
[1747538295729,1.33610198,2477.8,2477.4,0.80703]
[1747538295934,1.33610198,2477.8,2477.7,0.80693]
[1747538296114,1.33610198,2477.8,2477.7,8.97293]
[1747538296624,1.33610198,2477.8,2477.7,17.13593]
[1747538296828,1.33610198,2477.8,2477.7,20.73203]
[1747538298126,1.33610198,2477.8,2477.7,4.40303]
[1747538298427,1.33610198,2477.8,2477.7,20.73103]
[1747538299014,1.33610198,2477.8,2477.7,4.40303]
[1747538299220,3.17950198,2477.8,2477.7,18.91473]
[1747538299919,3.17950198,2477.8,2477.6,8.1172]
[1747538300125,0.80693,2477.7,2477.6,8.166]
[1747538300326,1.8434,2477.7,2477.6,8.166]
[1747538300826,1.8434,2477.7,2477.6,8.97296]
[1747538302124,1.8434,2477.7,2477.6,10.77086]
[1747538305720,1.8434,2477.7,2477.6,8.166]
[1747538305921,5.85813,2477.7,2477.6,8.166]
[1747538306328,5.85813,2477.7,2477.6,7.39421058]
[1747538306827,2.65033,2477.7,2477.6,7.39421058]
[1747538307029,0.80696,2477.6,2477.5,3.058]
[1747538307325,5.82686,2477.6,2477.5,11.217]
[1747538308123,5.0199,2477.6,2477.5,12.024]
[1747538308529,5.82686,2477.6,2477.5,11.217]
[1747538309724,5.82686,2477.6,2477.5,3.058]
[1747538310330,7.02475399,2477.6,2477.5,3.058]
[1747538313336,7.22752477,2477.6,2477.5,3.058]
[1747538313827,7.62941075,2477.6,2477.5,3.058]
[1747538314337,7.62941075,2477.6,2477.5,3.15018003]
[1747538315238,7.62943504,2477.6,2477.5,0.09218003]
[1747538317039,7.6294775,2477.6,2477.5,0.09218003]
[1747538317237,7.6294775,2477.6,2477.5,3.15018003]
[1747538317439,7.75813334,2477.6,2477.5,1.8636216]
[1747538318335,7.75813334,2477.6,2477.5,1.95580163]
[1747538318634,7.75813334,2477.6,2477.5,2.76280163]
[1747538318830,7.75821644,2477.6,2477.5,2.76280163]
[1747538319736,7.75821644,2477.6,2477.5,1.95580163]
[1747538321535,6.15843647,2477.6,2477.5,1.95580163]
[1747538323342,6.15843647,2477.6,2477.5,0.09218003]
[1747538324334,7.15988324,2477.6,2477.5,0.09218003]
[1747538326041,7.15989569,2477.6,2477.5,0.09218003]
[1747538327747,4.54083569,2477.6,2477.5,0.89918003]
[1747538327948,4.33790261,2477.6,2477.5,9.05918003]
[1747538328148,4.33790261,2477.6,2477.5,12.11718003]
[1747538329047,3.33645584,2477.6,2477.5,12.11718003]
[1747538331643,0.12865584,2477.6,2477.5,12.11718003]
[1747538331849,0.12865584,2477.6,2477.5,15.32498003]
[1747538332357,1.20022569,2477.7,2477.6,0.80696]
[1747538332654,1.20022569,2477.7,2477.6,2.79296]
[1747538334557,2.00715569,2477.7,2477.6,10.146]
[1747538334762,2.00715569,2477.7,2477.6,10.95296]
[1747538334961,1.20022569,2477.7,2477.6,10.95296]
[1747538335264,1.60030092,2477.7,2477.6,10.95296]
[1747538336164,2.40723092,2477.7,2477.6,10.138]
[1747538336362,4.34543092,2477.7,2477.6,10.138]
[1747538336563,4.34543092,2477.7,2477.6,10.94496]
[1747538337062,4.54864274,2477.7,2477.6,10.94496]
[1747538337866,4.34543092,2477.7,2477.6,10.94496]
[1747538338063,3.53850092,2477.7,2477.6,10.94496]
[1747538339065,3.74171245,2477.7,2477.6,10.94496]
[1747538340060,3.74171245,2477.7,2477.6,2.79296]
[1747538340263,5.61891245,2477.7,2477.5,3.95715003]
[1747538340464,2.72156,2477.6,2477.5,3.15018003]
[1747538340767,2.92473435,2477.6,2477.5,3.15018003]
[1747538341966,2.92473845,2477.6,2477.5,3.15018003]
[1747538343261,2.92473845,2477.6,2477.5,0.09218003]
[1747538343767,0.80716,2477.0,2476.9,1.9926]
[1747538343964,0.80716,2477.0,2476.9,8.152]
[1747538344168,1.01025023,2477.0,2476.9,11.21]
[1747538344572,4.56384,2477.1,2476.9,11.21]
[1747538344771,0.80716,2477.0,2476.9,13.17]
[1747538344969,2.79266,2477.0,2476.9,13.17]
[1747538345869,2.9956427,2477.0,2476.9,3.058]
[1747538347172,2.99548149,2477.0,2476.9,3.058]
[1747538348573,4.12798154,2477.0,2476.9,3.058]
[1747538349066,2.01802,2476.9,2476.3,4.41450135]
[1747538349272,2.01802,2476.9,2476.3,7.09347135]
[1747538349273,0.80735,2476.4,2476.3,7.09347135]
[1747538349572,0.80735,2476.4,2476.3,5.88677]
[1747538350270,0.80735,2476.4,2476.3,8.94477]
[1747538351772,0.80735,2476.4,2476.3,8.1374]
[1747538352377,0.80735,2476.4,2476.3,8.94479]
[1747538353376,1.19672564,2476.7,2476.6,0.80729]
[1747538353570,1.19672564,2476.7,2476.6,8.96129]
[1747538353873,2.20058172,2476.7,2476.6,13.96129]
[1747538354571,2.20058172,2476.7,2476.6,17.16909]
[1747538354772,2.20058172,2476.7,2476.6,22.96349]
[1747538355977,1.00385608,2476.7,2476.6,22.96349]
[1747538357475,1.00385608,2476.7,2476.6,17.96349]
[1747538357772,0.80721,2476.9,2476.7,0.80725]
[1747538358066,0.80721,2476.9,2476.6,13.9484]
[1747538358067,4.70378,2477.0,2476.8,2.67862]
[1747538358273,0.80719,2476.9,2476.8,1.8714]
[1747538358978,2.68679,2476.9,2476.8,1.8714]
[1747538359278,1.8796,2476.9,2476.8,5.73662]
[1747538359975,1.8796,2476.9,2476.8,5.82880003]
[1747538361477,2.017,2477.0,2476.9,0.80719]
[1747538361672,2.017,2477.0,2476.9,2.67959]
[1747538361873,3.2078,2477.1,2477.0,0.80716]
[1747538362071,3.2078,2477.1,2477.0,2.67956]
[1747538362272,3.2078,2477.1,2477.0,12.71676]
[1747538362273,4.40452564,2477.1,2477.0,12.71676]
[1747538362980,1.19672564,2477.1,2477.0,12.71676]
[1747538363179,1.19672564,2477.1,2477.0,15.77476]
[1747538365384,1.00385608,2477.2,2477.1,0.80713]
[1747538365681,1.00385608,2477.2,2477.1,2.80963]
[1747538367283,1.00385608,2477.2,2477.1,4.69633]
[1747538368277,1.19672564,2477.3,2477.1,3.40963862]
[1747538368482,1.19672564,2477.3,2477.1,1.8867]
[1747538368985,1.19672564,2477.3,2477.2,0.80709]
[1747538370287,3.90278564,2477.3,2477.2,0.80709]
[1747538370988,3.09572564,2477.3,2477.2,0.80709]
[1747538371590,3.09572564,2477.3,2477.1,4.9447]
[1747538371790,3.09572564,2477.3,2477.2,0.80709]
[1747538372491,3.09572564,2477.3,2477.2,2.84029]
[1747538373690,3.90278564,2477.3,2477.2,2.84029]
[1747538373993,0.80709,2477.2,2477.1,3.058]
[1747538374192,4.65229,2477.2,2477.1,8.95113]
[1747538377697,3.8452,2477.2,2477.1,8.95113]
[1747538377995,4.65229,2477.2,2477.1,8.95113]
[1747538378995,0.80713,2477.1,2477.0,3.058]
[1747538379191,3.04354894,2477.1,2477.0,3.058]
[1747538379794,3.04357919,2477.1,2477.0,3.058]
[1747538380297,4.63921338,2477.1,2477.0,3.058]
[1747538383193,5.77174723,2477.1,2477.0,3.058]
[1747538383998,6.57575837,2477.1,2477.0,3.058]
[1747538385297,6.57602942,2477.1,2477.0,3.058]
[1747538387100,6.57602363,2477.1,2477.0,3.058]
[1747538389299,6.57602363,2477.1,2477.0,3.15018003]
[1747538389898,5.76889363,2477.1,2477.0,3.95734003]
[1747538390598,5.76889363,2477.1,2477.0,5.96424003]
[1747538390803,6.57601313,2477.1,2477.0,5.96424003]
[1747538394201,6.57613466,2477.1,2477.0,5.96424003]
[1747538394502,6.57613424,2477.1,2477.0,5.96424003]
[1747538395401,6.57613424,2477.1,2477.0,5.15708003]
[1747538395804,6.57613424,2477.1,2477.0,3.15018003]
[1747538398109,6.57613424,2477.1,2477.0,0.09218003]
[1747538399108,6.57613424,2477.1,2477.0,3.15018003]
[1747538399907,6.57615989,2477.1,2477.0,3.15018003]
[1747538400103,5.57230381,2477.1,2477.0,3.15018003]
[1747538401313,5.57242266,2477.1,2477.0,3.15018003]
[1747538401507,3.17277733,2477.1,2477.0,3.15018003]
[1747538402309,3.17277733,2477.1,2477.0,0.09218003]
[1747538402511,3.46780001,2477.1,2477.0,0.09218003]
[1747538404006,6.66915559,2477.1,2477.0,0.09218003]
[1747538404809,6.66911449,2477.1,2477.0,0.09218003]
[1747538405915,6.37409181,2477.1,2477.0,0.09218003]
[1747538407210,0.80732,2476.5,2476.4,10.1456]
[1747538407416,1.01094846,2476.5,2476.4,8.135]
[1747538407820,0.80735,2476.4,2476.3,15.98018]
[1747538408014,2.9127086,2476.4,2476.3,5.1093]
[1747538408414,2.91264799,2476.4,2476.3,5.1093]
[1747538408611,2.91264799,2476.4,2476.3,1.9015]
[1747538408808,0.80742,2476.2,2476.1,13.20100135]
[1747538409012,0.80742,2476.2,2476.1,15.20670135]
[1747538409413,2.00953858,2476.2,2476.1,14.0]
[1747538409615,2.00953858,2476.2,2476.1,14.80745]
[1747538410016,2.00953858,2476.2,2476.1,6.67245]
[1747538410319,2.00953858,2476.2,2476.1,5.865]
[1747538410518,2.00953858,2476.2,2476.1,14.0]
[1747538410730,2.00953858,2476.2,2476.1,5.865]
[1747538411031,3.98093858,2476.2,2476.1,14.0]
[1747538411431,3.98093858,2476.2,2476.1,3.9342]
[1747538411635,3.98093858,2476.2,2476.1,12.0692]
[1747538412123,0.80745,2476.1,2476.0,3.058]
[1747538412324,2.86265,2476.1,2476.0,3.058]
[1747538412530,5.08790679,2476.1,2476.0,3.058]
[1747538413932,5.08781533,2476.1,2476.0,3.058]
[1747538414130,4.88475,2476.1,2476.0,3.058]
[1747538414433,5.08774195,2476.1,2476.0,3.058]
[1747538414629,4.88475,2476.1,2476.0,3.058]
[1747538415025,5.08774103,2476.1,2476.0,3.058]
[1747538415227,4.88475,2476.1,2476.0,3.058]
[1747538415534,5.01342777,2476.1,2476.0,3.058]
[1747538417628,5.21627025,2476.1,2476.0,3.058]
[1747538418832,2.01893,2475.8,2475.4,8.136]
[1747538419023,0.80767,2475.5,2475.4,11.9548]
[1747538419220,0.80767,2475.5,2475.4,12.76248]
[1747538419429,0.80767,2475.5,2475.4,11.9548]
[1747538421228,0.80767,2475.5,2475.4,12.76248]
[1747538421434,13.2631,2475.9,2475.4,11.9548]
[1747538421628,0.80759,2475.7,2475.6,0.80759]
[1747538423426,0.80762,2475.6,2475.5,1.9153]
[1747538423831,0.80765,2475.5,2475.4,1.8882]
[1747538424026,2.73695,2475.5,2475.4,1.8882]
[1747538424226,2.73695,2475.5,2475.4,3.9115]
[1747538426935,0.80768,2475.4,2475.3,3.2078]
[1747538427238,0.80775,2475.2,2475.1,3.752]
[1747538428129,2.86163,2475.3,2475.2,0.80775]
[1747538428328,0.80773,2475.3,2475.2,0.80775]
[1747538428526,0.80773,2475.3,2475.2,2.83185]
[1747538429436,0.80773,2475.3,2475.2,2.0241]
[1747538430523,0.80773,2475.3,2475.2,2.83185]
[1747538431131,2.00555316,2475.5,2475.4,0.80768]
[1747538431436,0.80768,2475.4,2475.3,2.6764]
[1747538433234,0.80768,2475.4,2475.3,2.67639]
[1747538433737,0.80768,2475.4,2475.3,1.90380445]
[1747538435038,0.80768,2475.4,2475.3,1.99598448]
[1747538436840,0.80768,2475.4,2475.3,1.18829448]
[1747538437040,0.80768,2475.4,2475.3,1.99600448]
[1747538437633,1.19789316,2475.5,2475.4,0.80768]
[1747538437840,0.66741154,2475.7,2475.4,3.5668]
[1747538438139,0.66741154,2475.7,2475.6,4.01542]
[1747538438340,2.40423717,2475.8,2475.7,0.80758]
[1747538438533,1.33937786,2476.2,2476.1,0.80745]
[1747538438734,1.33937786,2476.2,2476.1,8.93345]
[1747538438935,1.33937786,2476.2,2476.1,13.93345]
[1747538439626,1.33937786,2476.2,2476.1,18.4150694]
[1747538439833,1.67028014,2476.5,2476.4,0.80735]
[1747538440033,1.67028014,2476.5,2476.4,4.01515]
[1747538440436,1.67028014,2476.5,2476.4,8.93235]
[1747538440639,2.66162,2476.5,2476.4,8.125]
[1747538440840,3.732,2476.5,2476.3,8.125]
[1747538441044,0.80738,2476.4,2476.3,8.125]
[1747538441240,2.66168,2476.4,2476.3,8.125]
[1747538441638,1.8543,2476.4,2476.0,4.9826]
[1747538441848,0.80745,2476.2,2476.1,8.125]
[1747538442543,0.80741,2476.3,2476.1,8.125]
[1747538442732,1.7788,2476.2,2476.1,8.93245]
[1747538445949,1.7788,2476.2,2476.0,3.2078]
[1747538446246,0.80745,2476.1,2476.0,3.2078]
[1747538446643,1.7788,2476.2,2475.9,8.125]
[1747538446644,0.80749,2476.0,2475.9,8.125]
[1747538446837,0.80752,2475.9,2475.8,48.84]
[1747538447034,2.65922,2475.9,2475.8,8.125]
[1747538447246,0.80755,2475.8,2475.7,0.80757]
[1747538447447,2.65925,2475.8,2475.7,8.93257]
[1747538447847,2.65925,2475.8,2475.7,8.125]
[1747538448046,5.86705,2475.8,2475.7,8.125]
[1747538448342,0.80762,2475.6,2475.5,0.80764]
[1747538448548,0.80762,2475.6,2475.5,8.93264]
[1747538448845,2.58169,2475.7,2475.6,0.80762]
[1747538450649,2.58169,2475.7,2475.5,8.93263]
[1747538450846,1.7741,2475.6,2475.5,8.93263]
[1747538452147,2.58172,2475.6,2475.5,8.93263]
[1747538453649,2.58172,2475.6,2475.5,8.125]
[1747538453947,1.7741,2475.6,2475.1,6.7415]
[1747538454147,0.80769,2475.4,2475.3,0.80771]
[1747538454551,2.61939,2475.4,2475.3,0.80771]
[1747538456255,1.8117,2475.4,2475.3,0.80771]
[1747538456747,2.61938,2475.4,2475.3,0.80771]
[1747538457446,0.80771,2475.3,2475.2,8.93273]
[1747538457648,1.8242,2475.3,2475.2,8.93273]
[1747538461457,2.63191,2475.3,2475.2,8.93273]
[1747538461759,1.8242,2475.3,2475.2,8.93273]
[1747538462057,1.8242,2475.3,2475.2,0.80773]
[1747538462352,3.5747,2475.5,2475.2,8.92173]
[1747538462565,5.3345,2475.5,2475.4,0.80768]
[1747538462962,6.14215,2475.5,2475.4,0.80768]
[1747538464362,6.14215,2475.5,2475.4,0.89986003]
[1747538465654,5.3345,2475.5,2475.4,0.89986003]
[1747538465854,6.14215,2475.5,2475.4,0.89986003]
[1747538466659,5.3345,2475.5,2475.4,0.89986003]
[1747538467664,3.5881,2475.5,2475.4,0.89986003]
[1747538468161,4.39575,2475.5,2475.4,0.89986003]
[1747538468361,4.39575,2475.5,2475.4,0.09218003]
[1747538469063,3.5881,2475.5,2475.4,0.89986003]
[1747538469264,3.3884759,2475.7,2475.6,0.80762]
[1747538469465,1.5984759,2475.7,2475.6,8.92162]
[1747538470963,3.2078,2475.8,2475.7,0.80758]
[1747538471164,3.2078,2475.8,2475.7,8.114]
[1747538471364,4.9874,2475.8,2475.6,8.92159]
[1747538471559,1.7796,2475.7,2475.6,8.92159]
[1747538471760,3.2078,2475.8,2475.7,0.80758]
[1747538471961,3.2078,2475.8,2475.7,2.60838]
[1747538472972,1.5984759,2476.1,2476.0,0.80749]
[1747538473166,1.5984759,2476.1,2476.0,17.12929]
[1747538473365,1.5984759,2476.1,2476.0,21.70412803]
[1747538473762,1.66943159,2476.2,2476.1,0.80745]
[1747538473963,1.66943159,2476.2,2476.1,2.70385]
[1747538474169,1.66943159,2476.2,2476.1,18.92485]
[1747538476269,1.66943159,2476.2,2476.1,28.14294139]
[1747538476778,1.5984759,2476.5,2476.4,0.80735]
[1747538476962,3.4146759,2476.7,2476.6,0.80729]
[1747538477168,3.4146759,2476.7,2476.6,8.92029]
[1747538479673,1.8162,2476.7,2476.6,8.92029]
[1747538479868,1.8542,2476.8,2476.6,8.92029]
[1747538480074,1.8542,2476.8,2476.7,2.68766]
[1747538480375,1.8542,2476.8,2476.6,8.113]
[1747538480376,2.66144,2476.8,2476.6,0.80727]
[1747538480572,2.67458,2476.7,2476.6,0.09218003]
[1747538480869,2.67458,2476.7,2476.6,8.20418003]
[1747538481477,2.67458,2476.7,2476.6,0.09218003]
[1747538482980,2.87735731,2476.7,2476.6,0.09218003]
[1747538484785,2.87732638,2476.7,2476.6,0.09218003]
[1747538485282,3.0060339,2476.7,2476.6,0.09218003]
[1747538486583,3.00607342,2476.7,2476.6,0.09218003]
[1747538488285,0.80735,2476.4,2476.3,3.2078]
[1747538489188,0.80742,2476.2,2476.1,8.90744]
[1747538489491,2.55141,2476.3,2476.2,0.80742]
[1747538489985,1.744,2476.3,2476.2,0.80742]
[1747538490688,2.71355,2476.5,2476.1,8.1]
[1747538490889,0.80737,2476.4,2476.3,0.80739]
[1747538491189,1.72718342,2476.7,2476.6,0.80729]
[1747538491786,1.72718342,2476.7,2476.6,0.89947003]
[1747538492897,3.57208342,2476.7,2476.6,0.89947003]
[1747538493394,4.2506359,2476.7,2476.6,0.89947003]
[1747538493691,4.2506359,2476.7,2476.6,0.09218003]
[1747538494190,3.4433759,2476.7,2476.6,0.89947003]
[1747538494690,1.8449,2476.7,2476.6,0.89947003]
[1747538494882,1.8449,2476.7,2476.5,3.6452]
[1747538495083,1.8449,2476.7,2476.6,0.80729]
[1747538495793,1.8449,2476.7,2476.6,0.89947003]
[1747538496391,2.65216,2476.7,2476.6,0.09218003]
[1747538497425,2.85532295,2476.7,2476.6,0.09218003]
[1747538497621,2.04815362,2476.7,2476.6,0.89947003]
[1747538498017,1.8449,2476.7,2476.6,0.89947003]
[1747538498305,3.4433759,2476.7,2476.6,0.89947003]
[1747538498708,3.4433759,2476.7,2476.6,2.67317003]
[1747538498917,3.4433759,2476.7,2476.6,0.89947003]
[1747538499258,4.2506359,2476.7,2476.6,0.09218003]
[1747538499426,4.45402998,2476.7,2476.6,0.09218003]
[1747538500389,5.25236491,2476.7,2476.6,0.09218003]
[1747538500691,5.25250423,2476.7,2476.6,0.09218003]
[1747538500896,4.24171083,2476.7,2476.6,0.89947003]
[1747538501200,4.44524298,2476.7,2476.6,0.89947003]
[1747538501396,4.44533402,2476.7,2476.6,0.89947003]
[1747538502598,4.44542872,2476.7,2476.6,0.89947003]
[1747538502798,4.24171083,2476.7,2476.6,0.89947003]
[1747538503202,4.24171083,2476.7,2476.6,2.77397003]
[1747538503900,4.44541595,2476.7,2476.6,2.77397003]
[1747538504304,2.04860512,2476.7,2476.6,2.77397003]
[1747538504802,2.04860811,2476.7,2476.6,2.77397003]
[1747538505502,2.85586811,2476.7,2476.6,0.89947003]
[1747538505696,2.85586811,2476.7,2476.6,0.09218003]
[1747538505902,0.20370811,2476.7,2476.6,0.89947003]
[1747538506302,2.11090811,2476.7,2476.6,0.89947003]
[1747538506805,2.11090524,2476.7,2476.6,8.99847003]
[1747538508209,3.71506431,2476.7,2476.6,8.99847003]
[1747538508505,0.80735,2476.4,2476.3,8.099]
[1747538508697,0.20368229,2476.4,2476.3,8.90639]
[1747538508900,1.01103229,2476.4,2476.3,8.90639]
[1747538509101,2.78983229,2476.4,2476.3,8.90639]
[1747538509811,1.98248229,2476.4,2476.3,8.90639]
[1747538510310,1.98249984,2476.4,2476.3,8.90639]
[1747538510809,3.58665891,2476.4,2476.3,8.90639]
[1747538512009,3.58665812,2476.4,2476.3,8.90639]
[1747538513515,4.39400812,2476.4,2476.3,8.90639]
[1747538514717,4.39400927,2476.4,2476.3,8.90639]
[1747538515015,4.39400927,2476.4,2476.3,8.099]
[1747538515818,0.80739,2476.3,2476.2,2.6971]
[1747538516007,2.8529902,2476.3,2476.2,2.6971]
[1747538516213,2.0456002,2476.3,2476.2,10.7971]
[1747538516513,1.60415907,2476.4,2476.3,0.80739]
[1747538516711,1.80785792,2476.4,2476.3,2.62699]
[1747538517516,3.44605907,2476.4,2476.3,2.62699]
[1747538517718,3.64976632,2476.4,2476.3,2.62699]
[1747538518823,4.45711632,2476.4,2476.3,8.091]
[1747538519519,4.45714777,2476.4,2476.3,8.091]
[1747538520421,3.64979777,2476.4,2476.0,2.71116]
[1747538520622,0.80745,2476.1,2476.0,8.89846]
[1747538521220,1.01120157,2476.1,2476.0,8.091]
[1747538521420,2.82560157,2476.1,2476.0,8.89849]
[1747538521924,2.82560157,2476.1,2476.0,8.091]
[1747538522425,2.82551152,2476.1,2476.0,8.89849]
[1747538522727,0.80749,2476.0,2475.9,8.091]
[1747538522918,2.82555152,2476.0,2475.9,8.091]
[1747538523626,2.82555152,2476.0,2475.9,8.89852]
[1747538524229,2.82545584,2476.0,2475.9,8.99070003]
[1747538524926,2.82545584,2476.0,2475.9,0.09218003]
[1747538525115,6.03325584,2476.0,2475.9,0.09218003]
[1747538525932,5.82969,2476.0,2475.9,0.09218003]
[1747538526221,11.03314587,2476.0,2475.9,0.09218003]
[1747538526430,19.12214587,2476.0,2475.9,0.09218003]
[1747538527625,19.12191834,2476.0,2475.9,0.09218003]
[1747538527825,19.12192052,2476.0,2475.9,0.09218003]
[1747538528525,27.21392052,2476.0,2475.9,0.09218003]
[1747538529629,27.2137723,2476.0,2475.9,0.09218003]
[1747538531033,11.0327723,2476.0,2475.9,0.09218003]
[1747538531238,19.1217723,2476.0,2475.9,0.09218003]
[1747538531532,19.12165136,2476.0,2475.9,0.09218003]
[1747538533226,19.12159505,2476.0,2475.9,0.09218003]
[1747538533830,19.12159505,2476.0,2475.9,3e-08]
[1747538534036,0.80768,2475.4,2475.3,3.21863445]
[1747538534232,4.21838505,2475.4,2475.3,3.21863445]
[1747538534729,5.0909,2475.4,2475.3,4.02634445]
[1747538534929,3.2078,2475.4,2475.3,4.02634445]
[1747538535327,3.2078,2475.4,2475.3,7.73684445]
[1747538535635,1.88546172,2476.0,2475.9,0.80752]
[1747538535830,0.80752,2475.9,2475.8,8.093]
[1747538536030,0.80758,2475.7,2475.6,8.9006]
[1747538536229,0.80758,2475.7,2475.6,8.90062]
[1747538536430,5.5252,2475.9,2475.6,8.90062]
[1747538536732,2.62038,2475.8,2475.7,3.5149]
[1747538537033,2.62038,2475.8,2475.7,4.32248]
[1747538537536,2.62038,2475.8,2475.7,3.5149]
[1747538537829,2.62038,2475.8,2475.7,1.7485]
[1747538538023,2.62038,2475.8,2475.4,3.5149]
[1747538538024,0.80765,2475.5,2475.4,3.5149]
[1747538538229,0.80765,2475.5,2475.4,1.7485]
[1747538538736,4.40705,2475.5,2475.4,1.7485]
[1747538539239,0.80768,2475.4,2475.3,3.21863445]
[1747538539427,2.62008,2475.4,2475.3,3.21863445]
[1747538539629,2.82316909,2475.4,2475.3,3.21863445]
[1747538540429,2.82312488,2475.4,2475.3,3.21863445]
[1747538541039,0.80778,2475.1,2475.0,5.0507]
[1747538541536,0.80788,2474.8,2474.7,8.094]
[1747538543040,8.6773,2475.0,2474.4,5.0498]
[1747538543343,2.54122,2474.7,2474.5,10.63366]
[1747538543640,1.7333,2474.7,2474.5,10.63366]
[1747538544138,0.80794,2474.6,2474.5,10.63366]
[1747538545051,1.7333,2474.7,2474.6,0.80794]
[1747538545341,0.80791,2474.7,2474.6,2.63454]
[1747538545753,0.80788,2474.8,2474.6,2.63454]
[1747538546134,0.80788,2474.8,2474.7,1.721]
[1747538546341,0.80788,2474.8,2474.7,2.52891]
[1747538546735,0.80788,2474.8,2474.7,1.721]
[1747538548643,0.80794,2474.6,2474.5,1.7317]
[1747538548843,0.80797,2474.5,2474.4,8.088]
[1747538549744,2.69387,2474.5,2474.4,8.088]
[1747538550437,2.69387,2474.5,2474.4,8.89601]